Cogmind - Beta 14 @@@ ROGUE MODE // 2024.08.26 @ 19:00:56 Player: Daffa0360 Result: Destroyed by Y-54 Guardian with Flak Gun Performance ------------- Evolutions (3) 1500 Regions Visited (11) 2200 Robots Destroyed (109) 545 Value Destroyed (4605) 4605 Prototype IDs (35) 700 Alien Tech Used (0) 0 Bonus (1891) 1891 TOTAL SCORE: 11441 Bonus ------- High Alert Combat Kills 330 Follower Combat Kills 75 Entered Garrisons 200 Used RIF Installer 1000 Aligned with FarCom 300 Friendly Fire -14 Cogmind --------- Core Integrity 0/700 Matter 270/300 Energy 100/100 System Corruption 0% Temperature Cool (18) Movement Walking (170) Ox1 Location -7/Lower Caves Parts ------- > --- POWER (1) -------- (None) > --- PROPULSION (2) --- Potential Leg Potential Leg > --- UTILITY (8) ------ Huge Storage Unit Improved Signal Interpreter Makeshift Terrain Scan Processor Advanced Targeting Computer Advanced Targeting Computer Core Analyzer Relay Coupler [Duelist] (11) Relay Coupler [Hunter] (4) > --- WEAPON (2) ------- Precision Assault Rifle Spear > --- INVENTORY (25) --- Light Nuclear Core Micro Nuclear Core Medium Treads Large Storage Unit High-capacity Matter Pod (200) Weight Redist. System Target Analyzer Armor Integrity Analyzer Recoil Stabilizer Matter Filter Improved Utility Shielding Hardened Heavy Armor Plating Medium Insulated Plating EM Disruption Field Hacking Suite Relay Coupler [NC] (22) Relay Coupler [Demolisher] (21) Gauss Rifle Missile Launcher Remote Datajack Plasma Cutter Great Axe Spear Peak State ------------ > --- POWER ------------ Heavy Ion Engine > --- PROPULSION ------- Potential Leg Potential Leg > --- UTILITY ---------- Huge Storage Unit Improved Signal Interpreter Makeshift Terrain Scan Processor Advanced Targeting Computer Advanced Targeting Computer Core Analyzer Relay Coupler [Duelist] Relay Coupler [Hunter] > --- WEAPON ----------- Great Axe Spear > --- INVENTORY -------- Light Nuclear Core Micro Nuclear Core Medium Treads Large Storage Unit High-capacity Matter Pod Weight Redist. System Target Analyzer Armor Integrity Analyzer Recoil Stabilizer Matter Filter Improved Utility Shielding Hardened Heavy Armor Plating Medium Insulated Plating EM Disruption Field Hacking Suite Relay Coupler [NC] Relay Coupler [Demolisher] Gauss Rifle Precision Assault Rifle Missile Launcher Remote Datajack Remote Datajack Plasma Cutter Spear [Rating: 65] Favorites ----------- Power Cooled Ion Engine Engine Cooled Ion Engine Power Core Micro Nuclear Core Propulsion Light Treads Treads Light Treads Leg Potential Leg Wheel Armored Huge Wheel Flight Unit Improved Flight Unit Utility Huge Storage Unit Device Weight Redist. System Storage Huge Storage Unit Processor Advanced Targeting Computer Hackware Relay Coupler [Duelist] Protection Hardened Medium Armor Plating Weapon Spear Energy Gun Beam Rifle Ballistic Gun Gauss Rifle Ballistic Cannon Flak Cannon Launcher Rocket Launcher Special Weapon Remote Datajack Impact Weapon Hammer Slashing Weapon Great Axe Piercing Weapon Spear Build | -11 -10 -9 -9 -9 -8 -8 -8 -8 -7 -7 -7 ------- Run | Yrd Mat Mat Min Exi Min Mat Gar Mat Fac Low Low Slots Evolved 6 | . . 2 . . . 2 . . 2 . . Power . | . . . . . . . . . . . . Propulsion . | . . . . . . . . . . . . Utility 6 | . . 2 . . . 2 . . 2 . . Weapon . | . . . . . . . . . . . . Parts Attached 91 | . 3 19 . 2 . 9 13 10 29 5 1 Power 14 | . 1 2 . . . . 1 5 5 . . Engine 13 | . 1 2 . . . . 1 5 4 . . Core 1 | . . . . . . . . . 1 . . Reactor . | . . . . . . . . . . . . Propulsion 13 | . 2 5 . 2 . 1 . 1 2 . . Treads 6 | . 2 4 . . . . . . . . . Leg 4 | . . . . 2 . . . . 2 . . Wheel 2 | . . . . . . 1 . 1 . . . Hover . | . . . . . . . . . . . . Flight 1 | . . 1 . . . . . . . . . Utility 29 | . . 5 . . . 5 3 2 10 4 . Device 7 | . . 2 . . . 2 . . 3 . . Storage 1 | . . 1 . . . . . . . . . Processor 8 | . . 1 . . . 1 1 . 3 2 . Hackware 4 | . . . . . . . 1 . 2 1 . Protection 9 | . . 1 . . . 2 1 2 2 1 . Artifact . | . . . . . . . . . . . . Weapon 35 | . . 7 . . . 3 9 2 12 1 1 Energy Gun 1 | . . 1 . . . . . . . . . Energy Cannon . | . . . . . . . . . . . . Ballistic Gun 15 | . . 2 . . . . 4 2 6 . 1 Ballistic Cannon 3 | . . 3 . . . . . . . . . Launcher 1 | . . . . . . . 1 . . . . Special Weapon 4 | . . . . . . . 1 . 2 1 . Impact Weapon 1 | . . 1 . . . . . . . . . Slashing Weapon 2 | . . . . . . 1 . . 1 . . Piercing Weapon 8 | . . . . . . 2 3 . 3 . . Special Melee Weapon . | . . . . . . . . . . . . Unidentified Prototypes 6 | . . 2 . . . . . 2 2 . . Parts Lost 21 | . 1 6 . . . . 4 2 6 2 . Power 5 | . 1 . . . . . 1 . 2 1 . Propulsion 3 | . . 1 . . . . . 1 1 . . Utility 8 | . . 2 . . . . 2 1 3 . . Weapon 5 | . . 3 . . . . 1 . . 1 . Highest Loss Streak 4 | . 1 2 . . . . 3 1 4 2 . To Critical Strikes . | . . . . . . . . . . . . Average Slot Usage (%) 84 | . 61 87 77 77 77 87 82 89 85 95 92 Engine 7 | . 10 11 11 11 11 9 8 8 2 6 . Treads 5 | . 1 21 22 14 . . . . . . . Leg 3 | . 6 . . 7 22 9 . . . 15 15 Wheel 4 | . . . . . . 4 9 8 6 . . Device 5 | . . 12 . . . 18 10 3 1 . . Storage 8 | . 14 11 11 11 11 9 9 9 7 7 7 Processor 19 | . . 8 11 11 11 15 15 18 28 37 38 Hackware 4 | . . . . . . . . 9 9 11 15 Protection 5 | . . . . . . 4 11 14 6 . . Energy Gun 3 | . 14 5 11 11 11 7 . . . . . Ballistic Gun 5 | . 14 6 . . . . 5 14 8 . 7 Ballistic Cannon 2 | . . 5 11 11 11 7 . . . . . Slashing Weapon 2 | . . . . . . 1 4 . 3 2 . Piercing Weapon 2 | . . . . . . 1 6 3 1 7 7 Peak Build Rating 65 | 6 6 18 15 33 33 39 43 43 56 65 62 Average Rating 37 | 6 4 12 14 20 33 36 37 42 53 62 62 On Entrance 29 | 6 6 6 14 15 33 33 38 43 41 56 58 Naked Turns . | . . . . . . . . . . . . Heaviest Build 123 | 13 13 101 97 97 97 105 112 107 123 96 . Greatest Support 66 | 20 40 40 40 60 60 66 34 34 60 60 . Greatest Overweight (x) 4 | . 4 4 2 2 1 3 3 3 4 1 . Average Overweight (x) 2 | . 1 1 2 1 1 1 2 2 3 1 . Largest Inventory Capacity 25 | 8 8 25 25 25 25 25 25 25 25 25 25 Average Capacity 23 | 8 8 20 25 25 25 25 25 25 25 25 25 Most Carried 25 | 8 8 18 20 22 20 25 25 25 25 25 24 Average Carried 21 | 6 7 12 18 20 20 21 24 24 24 25 24 Final Capacity 25 | 8 8 25 25 25 25 25 25 25 25 25 25 Final Carried 25 | 6 5 17 20 20 20 25 25 23 25 25 24 Class Distribution -------------------- 54% | Mutant 28% | Bothacker-Mutant 9% | Scavenger-Mutant 3% | Assassin 3% | Skirmisher Dominant Class ---------------- Mutant | -10/Materials Scavenger-Mutant | -9/Materials Mutant | -9/Mines Mutant | -9/Exiles Mutant | -8/Mines Skirmisher | -8/Materials Mutant | -8/Garrison Mutant | -8/Materials Bothacker-Mutant | -7/Factory Bothacker-Mutant | -7/Lower Caves Bothacker-Mutant | -7/Lower Caves Resources | -11 -10 -9 -9 -9 -8 -8 -8 -8 -7 -7 -7 ----------- Run | Yrd Mat Mat Min Exi Min Mat Gar Mat Fac Low Low Matter Collected 2863 | 204 11 672 209 . . 27 545 371 713 111 . Remotely . | . . . . . . . . . . . . Salvage Created 4267 | 85 216 927 76 . . 27 950 586 1322 78 . Parts 265 | 5 19 58 5 . . . 49 33 92 4 . Haulers Intercepted 11 | . 1 4 . . . . . 2 4 . . Recyclers Shooed 5 | 1 . 2 . . . . . 1 1 . . Parts Field Recycled . | . . . . . . . . . . . . Retrieved Matter . | . . . . . . . . . . . . Parts Self-Destructed 5 | . . . . . . . . . . 5 . Prevented . | . . . . . . . . . . . . Kills | -11 -10 -9 -9 -9 -8 -8 -8 -8 -7 -7 -7 ------- Run | Yrd Mat Mat Min Exi Min Mat Gar Mat Fac Low Low Combat Hostiles Destroyed 85 | . 8 21 2 . . 1 22 7 21 3 . Melee 21 | . . . . . . . 10 1 7 3 . Guns 44 | . 8 11 . . . . 5 6 14 . . Cannons 13 | . . 10 2 . . 1 . . . . . AOE 7 | . . . . . . . 7 . . . . Classes Destroyed 14 | 2 3 4 . . . . 2 . 3 . . Worker 1 | . . . . . . . . . 1 . . Builder 3 | . . 1 . . . . . 2 . . . Tunneler 2 | 1 . . . . . . . . 1 . . Hauler 11 | . 1 4 . . . . . 2 4 . . Recycler 3 | 1 . . . . . . . 1 1 . . Watcher 4 | . . 3 . . . . . . 1 . . Swarmer 18 | . 6 4 . . . . . . 5 3 . Grunt 40 | . 2 12 2 . . . 16 3 5 . . Brawler 2 | . . 1 . . . . . 1 . . . Duelist 1 | . . . . . . . . . 1 . . Sentry 12 | . . 4 . . . 1 2 2 3 . . Specialist 1 | . . . . . . . 1 . . . . Hunter 4 | . . . . . . . 3 1 . . . Programmer 7 | . . . . . . . . . 7 . . Best Kill Streak 5 | 2 5 5 2 . . 1 4 3 3 3 . Combat Bots Only 5 | . 5 4 2 . . 1 4 1 3 3 . Max Kills in Single Turn 2 | 1 1 2 1 . . 1 1 1 1 1 . Gunslinging . | . . . . . . . . . . . . Exploded 1 | . . . . . . . 1 . . . . Melee 1 | . . . . . . . 1 1 1 1 . Uniques/NPCs Destroyed . | . . . . . . . . . . . . Combat | -11 -10 -9 -9 -9 -8 -8 -8 -8 -7 -7 -7 -------- Run | Yrd Mat Mat Min Exi Min Mat Gar Mat Fac Low Low Hostile Shots Fired 630 | . 41 165 3 . 1 6 98 30 193 57 36 Missed 171 | . 13 42 3 . . 1 27 7 52 13 13 Damage Taken 6259 | . 282 1465 . . 17 81 1103 392 2022 740 157 Core 1374 | . 110 316 . . . 15 199 32 410 280 12 Absorbed by Shields 18 | . . . . . . . 18 . . . . Regen/Repaired (Parts) 481 | . . . . . . . . . 481 . . Core Remaining (%) 58 | 100 56 . . . 21 . . 55 . . . Volleys Fired 320 | 4 31 95 3 . . 4 37 53 86 2 5 Largest 2 | 2 2 2 2 . . 2 2 2 2 1 1 Hottest 100 | 70 70 100 100 . . 100 56 53 53 5 28 Shots Fired 497 | 8 55 169 6 . . 8 58 61 125 2 5 Gun 416 | 8 55 120 3 . . 4 42 61 118 . 5 Cannon 56 | . . 49 3 . . 4 . . . . . Launcher 15 | . . . . . . . 15 . . . . Special 10 | . . . . . . . 1 . 7 2 . Kinetic 377 | 4 31 109 3 . . 4 42 61 118 . 5 Thermal 96 | 4 24 60 3 . . 4 1 . . . . Explosive 15 | . . . . . . . 15 . . . . Electromagnetic . | . . . . . . . . . . . . Robot Hit Streak 24 | 6 12 12 8 . . 9 8 24 16 16 3 Robot Miss Streak 9 | 1 4 9 3 . . 2 4 2 4 1 1 Penetration Max 1 | . . . . . . . 1 1 1 . . Secondary Targets 3 | . 2 . . . . . 1 . . . . Max Gunslinging Chain 1 | . 1 . . . . . 1 . . . . Shots Hit Robots 408 | 6 33 124 5 . . 5 59 55 112 5 4 Core Hits 214 | 3 14 67 7 . . 3 53 19 45 3 . Critical Kills 2 | . 1 . . . . . . . 1 . . Critical Parts Destroyed 2 | . . . . . . . . 2 . . . Critical Strikes 19 | . 2 4 . . . . 5 3 5 . . Burn 5 | . 1 4 . . . . . . . . . Destroy 4 | . 1 . . . . . . 2 1 . . Sever 8 | . . . . . . . 4 . 4 . . Impale 2 | . . . . . . . 1 1 . . . Melee Attacks 157 | . . 11 . . . 7 76 6 39 18 . Impact 11 | . . 11 . . . . . . . . . Slashing 73 | . . . . . . 1 33 . 32 7 . Piercing 73 | . . . . . . 6 43 6 7 11 . Sneak Attacks 12 | . . 4 . . . 1 2 . 5 . . Combat Hostiles 2 | . . . . . . . 2 . . . . Follow-up Attacks 3 | . . . . . . . 2 . 1 . . Damage Inflicted 9309 | 65 342 1960 99 . . 156 2882 959 2624 142 80 Guns 4538 | 65 342 1005 28 . . 14 509 886 1609 . 80 Cannons 922 | . . 753 71 . . 98 . . . . . Explosions 1363 | . . . . . . . 1363 . . . . Melee 2486 | . . 202 . . . 44 1010 73 1015 142 . Ramming . | . . . . . . . . . . . . Kinetic 4680 | 28 143 1256 71 . . 98 509 886 1609 . 80 Thermal 780 | 37 199 502 28 . . 14 . . . . . Explosive 1363 | . . . . . . . 1363 . . . . Electromagnetic . | . . . . . . . . . . . . Impact 202 | . . 202 . . . . . . . . . Slashing 1793 | . . . . . . . 703 . 948 142 . Piercing 491 | . . . . . . 44 307 73 67 . . Highest Corruption 2 | . . . . . . . . 2 2 . . Average Corruption 1 | . . . . . . . . 2 1 . . Corruption Purged 3 | . . . . . . . . . 3 . . Corruption Blocked . | . . . . . . . . . . . . Effects 33 | . . . . . . . . 6 27 . . Message Errors 10 | . . . . . . . . 1 9 . . Matter Fused 11 | . . . . . . . . 4 7 . . Heat Flow Errors 2 | . . . . . . . . 1 1 . . Energy Discharges 5 | . . . . . . . . . 5 . . Data Loss (minor) 3 | . . . . . . . . . 3 . . Misfires 2 | . . . . . . . . . 2 . . Overload Shots . | . . . . . . . . . . . . Overflow Damage 72 | . . 30 . . . . 28 . 7 7 . Projectiles . | . . . . . . . . . . . . Explosions 6 | . . . . . . . 6 . . . . Melee 66 | . . 30 . . . . 22 . 7 7 . Knockbacks 29 | . . 26 3 . . . . . . . . Impact . | . . . . . . . . . . . . Kinetic 28 | . . 25 3 . . . . . . . . Secondary 1 | . . 1 . . . . . . . . . Self-Inflicted Damage 37 | . . . . . . . 37 . . . . Shots 3 | . . . . . . . 3 . . . . Rammed . | . . . . . . . . . . . . Targets Rammed . | . . . . . . . . . . . . Kicked . | . . . . . . . . . . . . Crushed . | . . . . . . . . . . . . Highest Temperature 273 | 80 154 273 72 . . 63 60 148 189 . . Average Temperature 53 | 40 50 73 39 . . 31 30 30 47 . . Received Heat Transfer 1671 | . 66 609 . . 9 18 396 108 375 48 42 Siege Activations . | . . . . . . . . . . . . Robots Corrupted 1 | . . 1 . . . . . . . . . Combat Hostiles . | . . . . . . . . . . . . Parts Fried 1 | . . 1 . . . . . . . . . Impact Corruptions 2 | . . 2 . . . . . . . . . Robots Melted . | . . . . . . . . . . . . Combat Hostiles . | . . . . . . . . . . . . Parts Melted 4 | . . 4 . . . . . . . . . Heat Transferred 2664 | 111 666 1776 74 . . 37 . . . . . Parts Sabotaged . | . . . . . . . . . . . . Parts Stolen . | . . . . . . . . . . . . Parts Stripped . | . . . . . . . . . . . . Power Chain Reactions . | . . . . . . . . . . . . Alert | -11 -10 -9 -9 -9 -8 -8 -8 -8 -7 -7 -7 ------- Run | Yrd Mat Mat Min Exi Min Mat Gar Mat Fac Low Low Peak Influence 1593 | 10 289 193 50 . . 45 1593 777 333 . . Initial 776 | . 6 40 . . . . 7 776 164 . . Average 245 | 7 140 69 2 . . 22 619 556 161 . . Maximum Alert Level 4 | . 1 . . . . . 4 3 1 . . Low Security (%) 64 | 100 56 100 100 . 100 100 32 . 63 . . Level 1 15 | . 43 . . . . . 6 10 36 . . Level 2 8 | . . . . . . . 13 72 . . . Level 3 7 | . . . . . . . 29 17 . . . Level 4 3 | . . . . . . . 17 . . . . Level 5 . | . . . . . . . . . . . . High Security . | . . . . . . . . . . . . Max Security . | . . . . . . . . . . . . Squads Dispatched 8 | . . . . . . . . . 8 . . Investigation 2 | . . . . . . . . . 2 . . Extermination 5 | . . . . . . . . . 5 . . Reinforcement 1 | . . . . . . . . . 1 . . Assault . | . . . . . . . . . . . . Garrison . | . . . . . . . . . . . . Intercept . | . . . . . . . . . . . . Searches Triggered . | . . . . . . . . . . . . Construction Impeded . | . . . . . . . . . . . . Haulers Reinforced 1 | . . . . . . . . . 1 . . Active Scanning Responses . | . . . . . . . . . . . . Cargo Convoy Interrupts . | . . . . . . . . . . . . Stealth | -11 -10 -9 -9 -9 -8 -8 -8 -8 -7 -7 -7 --------- Run | Yrd Mat Mat Min Exi Min Mat Gar Mat Fac Low Low Distress Signals 4 | . 1 1 . . . . . 1 1 . . Communications Jammed . | . . . . . . . . . . . . Distress Signals . | . . . . . . . . . . . . Times Spotted 140 | . 15 30 2 . 1 2 26 12 45 6 1 Peak Tracking Total 6 | . 6 5 2 . 1 1 4 4 5 3 1 Tactical Retreats 16 | . 2 2 . . . . 6 . 4 2 . Traps | -11 -10 -9 -9 -9 -8 -8 -8 -8 -7 -7 -7 ------- Run | Yrd Mat Mat Min Exi Min Mat Gar Mat Fac Low Low Traps Triggered 11 | . . . . . . . 8 . 3 . . Indirectly . | . . . . . . . . . . . . Trap Hack Attempts . | . . . . . . . . . . . . Triggered . | . . . . . . . . . . . . Disarmed . | . . . . . . . . . . . . Reprogrammed . | . . . . . . . . . . . . Reused . | . . . . . . . . . . . . Traps Extracted . | . . . . . . . . . . . . Installed . | . . . . . . . . . . . . Triggered . | . . . . . . . . . . . . Machines | -11 -10 -9 -9 -9 -8 -8 -8 -8 -7 -7 -7 ---------- Run | Yrd Mat Mat Min Exi Min Mat Gar Mat Fac Low Low Machines Disabled 8 | . . . . . . . 8 . . . . Max in Single Turn 1 | . . . . . . . 1 . . . . Garrison Access 1 | . . . . . . . . . 1 . . Garrison Relay 5 | . . . . . . . 5 . . . . Machines Repaired . | . . . . . . . . . . . . Machines Dismantled 1 | . . . . . . . 1 . . . . Machines Sabotaged . | . . . . . . . . . . . . Overloaded Fab Kills . | . . . . . . . . . . . . Hacking | -11 -10 -9 -9 -9 -8 -8 -8 -8 -7 -7 -7 --------- Run | Yrd Mat Mat Min Exi Min Mat Gar Mat Fac Low Low Machines Accessed 31 | . 6 4 . 1 . 4 1 2 13 . . Terminals 23 | . 5 3 . . . 2 1 2 10 . . Fabricators 1 | . . . . . . . . . 1 . . Repair Stations 1 | . . . . . . . . . 1 . . Recycling Units 1 | . 1 . . . . . . . . . . Scanalyzers 2 | . . 1 . . . 1 . . . . . Garrison Access 2 | . . . . . . 1 . . 1 . . Total Hacks 82 | . 17 13 . 1 . 16 4 6 25 . . Successful 47 | . 13 8 . 1 . 11 2 4 8 . . Failed 35 | . 4 5 . . . 5 2 2 17 . . Catastrophic 6 | . . 1 . . . . . 1 4 . . Database Lockouts . | . . . . . . . . . . . . Manual 27 | . 6 7 . 1 . 1 . 4 8 . . Terminals 61 | . 15 9 . . . 7 4 6 20 . . Fabricators 1 | . . . . . . . . . 1 . . Repair Stations 3 | . . . . . . . . . 3 . . Recycling Units 2 | . 2 . . . . . . . . . . Scanalyzers 12 | . . 4 . . . 8 . . . . . Garrison Access 2 | . . . . . . 1 . . 1 . . Terminal Hacks 26 | . 9 3 . 1 . 3 2 4 4 . . Record 1 | . . . . . . 1 . . . . . Prototype ID Bank 3 | . 2 . . . . 1 . . . . . Branch Access Points 1 | . 1 . . . . . . . . . . Emergency Access Points 1 | . 1 . . . . . . . . . . Terminal Index 1 | . 1 . . . . . . . . . . Alert Level 8 | . 1 2 . . . 1 . 2 2 . . Unreport Threat 4 | . . 1 . . . . . 2 1 . . Locate Traps 3 | . 3 . . . . . . . . . . Hauler Manifests 1 | . . . . . . . . . 1 . . Security Stations 2 | . . . . . . . 2 . . . . Derelict Proto ID Bank 1 | . . . . 1 . . . . . . . Fabricator Hacks . | . . . . . . . . . . . . Repair Station Hacks 2 | . . . . . . . . . 2 . . Scan Component 1 | . . . . . . . . . 1 . . Repair 1 | . . . . . . . . . 1 . . Recycling Unit Hacks . | . . . . . . . . . . . . Scanalyzer 11 | . . 4 . . . 7 . . . . . Insert Component 6 | . . 2 . . . 4 . . . . . Analyze 5 | . . 2 . . . 3 . . . . . Garrison Access Hacks 2 | . . . . . . 1 . . 1 . . Unlock Access 1 | . . . . . . 1 . . . . . Seal Access 1 | . . . . . . . . . 1 . . Unauthorized Hacks 6 | . 4 1 . . . . . . 1 . . Terminals 4 | . 2 1 . . . . . . 1 . . Assimilate 1 | . . . . . . . . . 1 . . Botnet 3 | . 2 1 . . . . . . . . . Fabricators . | . . . . . . . . . . . . Repair Stations . | . . . . . . . . . . . . Recycling Units 2 | . 2 . . . . . . . . . . Recyclers 1 | . 1 . . . . . . . . . . Mask 1 | . 1 . . . . . . . . . . Scanalyzers . | . . . . . . . . . . . . Garrison Access . | . . . . . . . . . . . . Data Cores Recovered . | . . . . . . . . . . . . Used . | . . . . . . . . . . . . Hacking Detections 24 | . 3 3 . . . 4 1 2 11 . . Full Trace Events 2 | . . . . . . . . . 2 . . Feedback Events . | . . . . . . . . . . . . Feedback Blocked . | . . . . . . . . . . . . Robot Schematics Acquired . | . . . . . . . . . . . . Robots Built . | . . . . . . . . . . . . Authchips . | . . . . . . . . . . . . Time . | . . . . . . . . . . . . Total Robot Build Rating . | . . . . . . . . . . . . Part Schematics Acquired 5 | . . 2 . . . 3 . . . . . Parts Built . | . . . . . . . . . . . . Authchips . | . . . . . . . . . . . . Time . | . . . . . . . . . . . . Total Part Build Rating . | . . . . . . . . . . . . Parts Repaired 1 | . . . . . . . . . 1 . . Time 44 | . . . . . . . . . 44 . . Parts Recycled . | . . . . . . . . . . . . Recycled Matter . | . . . . . . . . . . . . Retrieved Matter . | . . . . . . . . . . . . Retrieved Components . | . . . . . . . . . . . . Parts Scanalyzed 5 | . . 2 . . . 3 . . . . . Part Schematics Acquired 5 | . . 2 . . . 3 . . . . . Parts Damaged . | . . . . . . . . . . . . Bothacking | -11 -10 -9 -9 -9 -8 -8 -8 -8 -7 -7 -7 ------------ Run | Yrd Mat Mat Min Exi Min Mat Gar Mat Fac Low Low Used RIF Installer 2 | . . . . . . . 2 . . . . Signal Jammer 1 | . . . . . . . 1 . . . . Robots Hacked 5 | . . . . . . . . . 4 1 . Non-combat . | . . . . . . . . . . . . Combat 5 | . . . . . . . . . 4 1 . Robot Hacks Applied 5 | . . . . . . . . . 4 1 . formatsys_high 5 | . . . . . . . . . 4 1 . Relay Couplers Released 18 | . . . . . . . 18 . . . . Machine Destruction 18 | . . . . . . . 18 . . . . Attached 4 | . . . . . . . 1 . 2 1 . Fabnet Peak Effective % . | . . . . . . . . . . . . Robots Rewired . | . . . . . . . . . . . . Allies Hacked 1 | . . . . . . . . . 1 . . Hacks Repelled . | . . . . . . . . . . . . Allies | -11 -10 -9 -9 -9 -8 -8 -8 -8 -7 -7 -7 -------- Run | Yrd Mat Mat Min Exi Min Mat Gar Mat Fac Low Low Total Allies 5 | . . . . . . . . . 4 1 . Largest Group 2 | . . . . . . . . . 2 1 . Highest-Rated Group 51 | . . . . . . . . . 51 21 . Highest-Rated Ally 30 | . . . . . . . . . 30 21 . Total Orders . | . . . . . . . . . . . . Ally Attacks 41 | . . . . . . . . . 37 4 . Total Damage 576 | . . . . . . . . . 530 46 . Kills 3 | . . . . . . . . . 3 . . Allies Corrupted . | . . . . . . . . . . . . Allies Melted . | . . . . . . . . . . . . Intel | -11 -10 -9 -9 -9 -8 -8 -8 -8 -7 -7 -7 ------- Run | Yrd Mat Mat Min Exi Min Mat Gar Mat Fac Low Low Robot Analysis Total . | . . . . . . . . . . . . Derelict Logs Recovered 3 | . . . 1 . . . . . . 2 . Drone Launches . | . . . . . . . . . . . . Drone Recoveries . | . . . . . . . . . . . . Exploration | -11 -10 -9 -9 -9 -8 -8 -8 -8 -7 -7 -7 ------------- Run | Yrd Mat Mat Min Exi Min Mat Gar Mat Fac Low Low Turns Passed 14492 | 43 467 2111 1422 550 172 657 2678 854 3645 1883 10 Spaces Moved 6659 | 23 225 608 434 220 29 348 1334 461 1901 1076 . Core 130 | . 130 . . . . . . . . . . Treads 1175 | . 18 608 434 115 . . . . . . . Legs 1610 | 23 77 . . 105 29 181 . . 119 1076 . Wheels 3744 | . . . . . . 167 1334 461 1782 . . Hover . | . . . . . . . . . . . . Flight . | . . . . . . . . . . . . Fastest Speed 120 | 120 120 160 320 170 170 130 130 130 145 170 . Average Speed 176 | 120 168 258 320 248 170 156 139 139 153 170 . Slowest Speed 480 | 120 250 480 320 320 170 170 145 145 170 170 . Overloaded Moves . | . . . . . . . . . . . . Propulsion Burnouts . | . . . . . . . . . . . . Robots Hopped . | . . . . . . . . . . . . Cave-ins Triggered . | . . . . . . . . . . . . Exploration Rate (%) 47 | 2 58 43 99 59 12 30 90 33 48 90 2 Regions Visited 11 Branch Regions 5 Pre-discovered Areas 1 | . . . . . . . . . . 1 . Known Exits Taken 8 | . . 1 1 1 1 1 . 1 1 1 . Unknown Exits Taken 2 | 1 1 . . . . . . . . . . Scrap Searched 8 | . . . 1 . . . . . . 7 . Spaces Dug 45 | . . 3 . . . 4 23 2 7 6 . Terrain Destroyed 85 | . . 3 . . . 4 62 2 8 6 . Melee 26 | . . 3 . . . 4 4 2 7 6 . Projectile 2 | . . . . . . . 1 . 1 . . AOE 57 | . . . . . . . 57 . . . . Terrain Rammed . | . . . . . . . . . . . . Walls Destroyed . | . . . . . . . . . . . . Machines Disabled . | . . . . . . . . . . . . Actions | -11 -10 -9 -9 -9 -8 -8 -8 -8 -7 -7 -7 --------- Run | Yrd Mat Mat Min Exi Min Mat Gar Mat Fac Low Low Total 8718 | 32 265 962 463 225 152 446 1964 622 2479 1102 6 Wait 1326 | 2 3 200 24 . 124 53 439 81 395 5 . Move 6648 | 22 224 607 433 219 28 348 1332 460 1900 1075 . Hop . | . . . . . . . . . . . . Pick Up 75 | 2 2 23 3 2 . 15 10 4 14 . . Fast Attach 16 | . . 1 . . . . 1 3 9 2 . Attach 31 | . 3 9 . 2 . 5 4 1 6 . 1 Detach 3 | . . 1 . . . 2 . . . . . Swap 44 | . . 9 . . . 4 8 6 14 3 . Drop 54 | 2 2 6 . 2 . 9 7 8 18 . . Fire 320 | 4 31 95 3 . . 4 37 53 86 2 5 Melee 138 | . . 11 . . . 6 63 6 37 15 . Ram . | . . . . . . . . . . . . Kick . | . . . . . . . . . . . . Crush . | . . . . . . . . . . . . Escape Stasis 55 | . . . . . . . 55 . . . . Rewire . | . . . . . . . . . . . . Trap . | . . . . . . . . . . . . Miscellaneous 8 | . . . . . . . 8 . . . . Route ------- -11/Scrapyard -10/Materials (discovered 3 exits: *Mat / *Min x2) -9/Materials (discovered 2 exits: *Mat / *Min) -9/Mines (discovered 3 exits: *Mat x2 / *Exi) -9/Exiles -8/Mines -8/Materials (discovered 2 exits: *Sto / Gar) -8/Garrison (discovered 3 exits: *Mat x3) -8/Materials -7/Factory (discovered 3 exits: *Fac x2 / *Low) -7/Lower Caves -7/Lower Caves History --------- Turn | Location | Event 3 | -11/Scrapyard | Discovered new exit (range 3) 44 | -11/Scrapyard | Entered Materials 101 | -10/Materials | Identified exit to Mines 305 | -10/Materials | Build established: Mutant 470 | -10/Materials | Discovered new exit (range 14) 511 | -10/Materials | Entered another Materials area 511 | -9/Materials | Evolved 2 slots: Utility x2 1065 | -9/Materials | Discovered new exit (range 8) 1160 | -9/Materials | Build established: Scavenger-Mutant 2097 | -9/Materials | Core integrity fell below 50% 2517 | -9/Materials | Discovered new exit (range 7) 2542 | -9/Materials | Identified exit to Mines 2622 | -9/Materials | Entered Mines 2638 | -9/Mines | Build established: Mutant 2751 | -9/Mines | A weapon hastily lodged in a ceiling crevice suddenly fell to the ground 3222 | -9/Mines | Discovered new exit (range 10) 3267 | -9/Mines | Learned location of 1 exit from Lower Caves 3373 | -9/Mines | Received a Rocket Launcher from a helpful Derelict 3775 | -9/Mines | Discovered new exit (range 10) 3801 | -9/Mines | Identified exit to Materials 4031 | -9/Mines | Deemed a non-threat by the Exiles lab entrance 4031 | -9/Mines | Discovered new exit (range 5) 4041 | -9/Mines | Identified exit to Exiles 4044 | -9/Mines | Entered Exiles 4121 | -9/Exiles | Met 8R-AWN 4176 | -9/Exiles | Met EX-HEX 4262 | -9/Exiles | Met EX-BIN 4304 | -9/Exiles | Aligned with FarCom system 4307 | -9/Exiles | Given EX-Vault access code 4380 | -9/Exiles | Opened EX-Vault 4409 | -9/Exiles | Found Potential Leg 4413 | -9/Exiles | Found Potential Leg 4448 | -9/Exiles | Warned to stay clear of 0b10 Research branches 4508 | -9/Exiles | Met EX-DEC 4576 | -9/Exiles | Discovered new exit (range 10) 4593 | -9/Exiles | Identified exit to Mines 4594 | -9/Exiles | Left Exiles lab with Potential Leg 4594 | -9/Exiles | Entered Mines 4754 | -8/Mines | Discovered exit to Materials (range 8) 4766 | -8/Mines | Entered Materials 4766 | -8/Materials | Evolved 2 slots: Utility x2 4878 | -8/Materials | Discovered new exit (range 15) 5001 | -8/Materials | Identified exit to Storage 5079 | -8/Materials | Build established: Skirmisher 5423 | -8/Materials | Identified exit to Garrison 5423 | -8/Materials | Entered Garrison 5605 | -8/Garrison | Build established: Assassin 5735 | -8/Garrison | Triggered checkpoint 5833 | -8/Garrison | Learned Materials security intel 5833 | -8/Garrison | Learned Materials security intel 5848 | -8/Garrison | Garrison Relay disabled 5887 | -8/Garrison | Triggered checkpoint 6155 | -8/Garrison | Build established: Mutant 6161 | -8/Garrison | Discovered new exit (range 13) 6177 | -8/Garrison | Identified exit to Materials 6251 | -8/Garrison | Triggered checkpoint 6427 | -8/Garrison | Triggered checkpoint 6517 | -8/Garrison | Discovered exit to Materials (range 14) 6801 | -8/Garrison | Triggered checkpoint 6857 | -8/Garrison | Discovered exit to Materials (range 11) 6864 | -8/Garrison | Lost 3 parts (1p1u1w) 7068 | -8/Garrison | Installed Relay Interface Framework 7134 | -8/Garrison | Garrison Relay disabled 7367 | -8/Garrison | Triggered checkpoint 7583 | -8/Garrison | Expanded RIF knowledge: Signal Jamming 7874 | -8/Garrison | Garrison Relay disabled 7930 | -8/Garrison | Garrison Relay disabled 8054 | -8/Garrison | Garrison Relay disabled 8101 | -8/Garrison | Entered Materials 8382 | -8/Materials | Discovered new exit (range 5) 8954 | -8/Materials | Identified exit to Factory 8955 | -8/Materials | Entered Factory 8955 | -7/Factory | Evolved 2 slots: Utility x2 9782 | -7/Factory | Discovered new exit (range 12) 10305 | -7/Factory | Identified exit to Factory 10714 | -7/Factory | Build established: Bothacker-Mutant 10851 | -7/Factory | Repaired Hrd. Heavy Armor Plating 12227 | -7/Factory | Discovered exit to Factory (range 10) 12358 | -7/Factory | Core integrity fell below 50% 12395 | -7/Factory | Lost 4 parts (1p1n2u) 12438 | -7/Factory | Discovered new exit (range 4) 12444 | -7/Factory | Identified exit to Lower Caves 12600 | -7/Factory | Entered Lower Caves 12601 | -7/Lower Caves | Identified exit to Lower Caves 13039 | -7/Lower Caves | Spotted B-75 Beast 13389 | -7/Lower Caves | Learned location of Extension (-4) 13616 | -7/Lower Caves | Encountered a Warlord checkpoint 14325 | -7/Lower Caves | Core integrity fell below 20% 14483 | -7/Lower Caves | Entered another Lower Caves area 14485 | -7/Lower Caves | Attracted the attention of an 0b10 checkpoint 14493 | -7/Lower Caves | Destroyed by Y-54 Guardian with Flak Gun Last Messages --------------- World map updated: -4/Extension. 13616_ NP-EKY(M): "WARLORD FOREVER!" 13675_ Searching scrap... 13675_ Found Imp. Light Armor Plating. 13675_ Found Weapon Cycler. 13675_ Found Mak. Leg. 13675_ Found 63 Matter. 13676_ Acquired 25 matter. 13926_ Acquired 5 matter. 14152_ Slug penetrates Wall. 14164_ Commando 4b destroyed. 14164_ Slug penetrates Wall. 14368_ Remote Datajack destroyed. 14393_ Hvy. Ion Engine destroyed. 14421_ NP-EKY(M) suffers critical hit (Blast). 14421_ NP-EKY(M) destroyed. LOCATION=LOWER CAVES GOAL=ESCAPE 14485_ Y-54 Guardian: "INTERCEPTING UNREGISTERED DERELICT." Map ----- +----------------------------------------------------+ | ?????????????????????????????????????????????????? | | ?????????????????????????????????????????????????? | | ?????????????????????????????????????????????????? | | ?????????????????????????????????????????????????? | | ?????????????????????????????????????????????????? | | ?????????????????????????????????????????????????? | | ?????????????????????????????????????????????????? | | ?????????????????????????????????????????????????? | | ?????????????????????????????????????????????????? | | ?????????????????????????????????????????????????? | | ?????????????????????????????????????????????????? | | ?????????????????????????????????????????????????? | | ?????????????????????????????????????????????????? | | ?????????????????????????????????????????????????? | | ?????????????????????????????????????????????????? | | ?????????????????????????????????????????????????? | | ?????????????????????????????????????????????????? | | ???????????????????????????????##????????????????? | | ??????????????????????????????# ?????????????????? | | ???????????????????????????### ??????????????????? | | ??????????????????????????# ???????????????????? | | ???????????????????????### ????????????????????? | | ??????????????????????## #????????????????????? | | ??????????????????????# #????????????????????? | | ????????????????# #### #????????????????????? | | ??????????????# @ #????????????????????? | | ??????????????# #????????????????????? | | ?????????????# ### ### ???????????????????? | | ???????????????????????# ?????????????????? | | ???????????????????????## #????????????????? | | ????????????????????????# Y #????????????????? | | ????????????????????????# #????????????????? | | ????????????????????????# #????????????????? | | ???????????????????????? #????????????????? | | ????????????????????????#$ ????????????????? | | ????????????????????????? ## #???????????????? | | ????????????????????????? ??# ###???????????????? | | ????????????????????????? ???###?????????????????? | | ?????????????????????????#???????????????????????? | | ?????????????????????????????????????????????????? | | ?????????????????????????????????????????????????? | | ?????????????????????????????????????????????????? | | ?????????????????????????????????????????????????? | | ?????????????????????????????????????????????????? | | ?????????????????????????????????????????????????? | | ?????????????????????????????????????????????????? | | ?????????????????????????????????????????????????? | | ?????????????????????????????????????????????????? | | ?????????????????????????????????????????????????? | | ?????????????????????????????????????????????????? | +----------------------------------------------------+ Best States ------------- Heat Dissipation 34 Energy Generation 16 Energy Capacity 290 Matter Stores 300 Matter Capacity 300 Sight Range 16 Robot Scan Range 14 Terrain Scan Density 210 Additional Mass Support 6 Armor Coverage 825 Utility Shielding 66 Evasion (%) 55 Targeting Accuracy 16 Core Analysis 6 Recoil Reduction 2 Matter Filtering 30 Relay Coupler Types 2 Relay Coupler Value 52 Item Schematics ----------------- Cld. Ion Engine | -9/Materials | Scanalyzed Weight Redist. System | -9/Materials | Scanalyzed Arm. Huge Wheel | -8/Materials | Scanalyzed Matter Filter | -8/Materials | Scanalyzed Lrg. Storage Unit | -8/Materials | Scanalyzed Robot Schematics ------------------ None Fabricated ------------ Nothing Alien Tech Used ----------------- None Achievements -------------- None Challenges ------------ None Game ------ Seed MeleeAdvancedShredder Manual? 0 Play Time 01:07:25 Cumulative 72.0 hours Start 2024.08.26 @ 17:50:55 End 2024.08.26 @ 19:00:56 Sessions 1 Manual Loads 0 Difficulty Rogue Special Mode None Game No. 117 Rogue 113 Adventurer 4 Explorer 0 Win Type - Total 0 Types 0/0/0/0/0/0/0/0/0 Lore% 32 Gallery% 45 Achievement% 35 Wizard Run 0 Options --------- Layout 2 ASCII 0 Keyboard 0 Movement Mouse Keybinds 0 Fullscreen 2 Font 24/Smallcaps Map View 50x44 Zoom Use 0% Tactical HUD 1 Map Filters NONE Filters NONE Steam 1 RUN: d6745a3e-0448-4461-bbc9-6c4cffb975ea